[Event "NJSK 2026 Jeugd B"]
[Site "Helmond, Netherlands"]
[Date "2026.04.30"]
[Round "6.2"]
[White "Groenewoud, Joel"]
[Black "Kurt, Sascha"]
[Result "0-1"]
[TimeControl "90min/40moves + 30min + 30sec/move"]
[WhiteTitle "-"]
[BlackTitle "-"]
[WhiteFideId "1087746"]
[BlackFideId "1082647"]
[WhiteElo "2114"]
[BlackElo "2280"]

1. e4 {[%clk 01:30:56]} {[%emt 00:00:03]} c5 {[%clk 01:30:54]} {[%emt
00:00:05]} 2. Nf3 {[%clk 01:31:13]} {[%emt 00:00:15]} d6 {[%clk 01:31:17]}
{[%emt 00:00:09]} 3. d4 {[%clk 01:31:23]} {[%emt 00:00:18]} cxd4 {[%clk
01:31:42]} {[%emt 00:00:05]} 4. Nxd4 {[%clk 01:31:42]} {[%emt 00:00:10]} Nf6
{[%clk 01:32:04]} {[%emt 00:00:09]} 5. Nc3 {[%clk 01:32:04]} {[%emt 00:00:08]}
a6 {[%clk 01:32:30]} {[%emt 00:00:04]} 6. g3 {[%clk 01:31:28]} {[%emt
00:01:06]} e5 {[%clk 01:32:47]} {[%emt 00:00:13]} 7. Nde2 {[%clk 01:31:48]}
{[%emt 00:00:09]} Be7 {[%clk 01:33:01]} {[%emt 00:00:17]} 8. Bg2 {[%clk
01:31:57]} {[%emt 00:00:21]} O-O {[%clk 01:32:29]} {[%emt 00:01:02]} 9. O-O
{[%clk 01:31:55]} {[%emt 00:00:32]} b5 {[%clk 01:32:26]} {[%emt 00:00:33]} 10.
Nd5 {[%clk 01:32:05]} {[%emt 00:00:20]} Nxd5 {[%clk 01:31:44]} {[%emt
00:01:13]} 11. Qxd5 {[%clk 01:32:20]} {[%emt 00:00:14]} Ra7 {[%clk 01:32:05]}
{[%emt 00:00:09]} 12. Be3 {[%clk 01:29:20]} {[%emt 00:03:29]} Rb7 {[%clk
01:31:41]} {[%emt 00:00:54]} 13. Qd3 {[%clk 01:29:04]} {[%emt 00:00:46]} Nd7
{[%clk 01:31:38]} {[%emt 00:00:32]} 14. Nc3 {[%clk 01:23:45]} {[%emt 00:05:50]}
Nf6 {[%clk 01:31:25]} {[%emt 00:00:43]} 15. b3 {[%clk 01:14:48]} {[%emt
00:09:26]} Be6 {[%clk 01:15:50]} {[%emt 00:16:05]} 16. a4 {[%clk 01:13:46]}
{[%emt 00:01:31]} Qd7 {[%clk 01:12:16]} {[%emt 00:04:04]} 17. axb5 {[%clk
01:07:22]} {[%emt 00:06:54]} axb5 {[%clk 01:12:39]} {[%emt 00:00:07]} 18. Ra6
{[%clk 01:07:27]} {[%emt 00:00:25]} h6 {[%clk 01:07:27]} {[%emt 00:05:42]} 19.
Rfa1 {[%clk 01:01:32]} {[%emt 00:06:24]} Rc8 {[%clk 01:04:30]} {[%emt
00:03:29]} 20. Ra7 {[%clk 00:54:22]} {[%emt 00:07:40]} Ng4 {[%clk 00:55:40]}
{[%emt 00:09:20]} 21. Rxb7 {[%clk 00:37:35]} {[%emt 00:17:15]} Qxb7 {[%clk
00:54:29]} {[%emt 00:01:42]} 22. Ra7 {[%clk 00:37:29]} {[%emt 00:00:36]} Qc6
{[%clk 00:54:42]} {[%emt 00:00:18]} 23. Nd5 {[%clk 00:36:11]} {[%emt 00:01:47]}
Bd8 {[%clk 00:51:57]} {[%emt 00:03:15]} 24. Nb4 {[%clk 00:13:14]} {[%emt
00:23:27]} Qe8 {[%clk 00:50:36]} {[%emt 00:01:49]} 25. Bf1 {[%clk 00:11:09]}
{[%emt 00:02:37]} Nxe3 {[%clk 00:42:51]} {[%emt 00:08:15]} 26. Qxe3 {[%clk
00:10:55]} {[%emt 00:00:44]} Rb8 {[%clk 00:43:09]} {[%emt 00:00:13]} 27. Qd3
{[%clk 00:08:27]} {[%emt 00:02:58]} Bb6 {[%clk 00:42:52]} {[%emt 00:00:46]} 28.
Ra6 {[%clk 00:08:18]} {[%emt 00:00:39]} Qc8 {[%clk 00:40:49]} {[%emt 00:02:34]}
29. Qd2 {[%clk 00:06:27]} {[%emt 00:02:21]} Bc5 {[%clk 00:29:29]} {[%emt
00:11:50]} 30. Rc6 {[%clk 00:02:20]} {[%emt 00:04:36]} Qd7 {[%clk 00:26:04]}
{[%emt 00:03:55]} 31. Nd5 {[%clk 00:02:17]} {[%emt 00:00:33]} Kh8 {[%clk
00:26:07]} {[%emt 00:00:27]} 32. Ra6 {[%clk 00:01:45]} {[%emt 00:01:02]} Qb7
{[%clk 00:25:24]} {[%emt 00:01:13]} 33. Ra2 {[%clk 00:00:56]} {[%emt 00:01:19]}
b4 {[%clk 00:20:14]} {[%emt 00:05:40]} 34. Bc4 {[%clk 00:00:53]} {[%emt
00:00:33]} Rf8 {[%clk 00:18:48]} {[%emt 00:01:56]} 35. Ra1 {[%clk 00:00:38]}
{[%emt 00:00:45]} f5 {[%clk 00:17:07]} {[%emt 00:02:12]} 36. Nf4 {[%clk
00:00:34]} {[%emt 00:00:34]} exf4 {[%clk 00:16:37]} {[%emt 00:01:00]} 37. Bxe6
{[%clk 00:00:59]} {[%emt 00:00:05]} fxe4 {[%clk 00:15:56]} {[%emt 00:01:11]} 38.
gxf4 {[%clk 00:00:56]} {[%emt 00:00:33]} e3 {[%clk 00:16:12]} {[%emt 00:00:14]}
39. Qd5 {[%clk 00:00:58]} {[%emt 00:00:28]} exf2+ {[%clk 00:16:16]} {[%emt
00:00:26]} 40. Kg2 {[%clk 00:01:00]} {[%emt 00:00:28]} Qxd5+ {[%clk 00:14:32]}
{[%emt 00:02:15]} 41. Bxd5 {[%clk 00:01:24]} {[%emt 00:00:05]} Rxf4 {[%clk
00:14:44]} {[%emt 00:00:18]} 42. Bc4 {[%clk 00:01:48]} {[%emt 00:00:06]} Rg4+
{[%clk 00:11:41]} {[%emt 00:03:33]} 43. Kf3 {[%clk 00:00:53]} {[%emt 00:01:25]}
Rg1 {[%clk 00:11:59]} {[%emt 00:00:12]} 44. Bf1 {[%clk 00:29:25]} {[%emt
00:01:58]} g6 {[%clk 00:41:53]} {[%emt 00:00:36]} 45. Ke2 {[%clk 00:25:12]}
{[%emt 00:04:43]} Rg5 {[%clk 00:41:23]} {[%emt 00:00:59]} 46. Ra8+ {[%clk
00:15:57]} {[%emt 00:09:46]} Kg7 {[%clk 00:41:38]} {[%emt 00:00:15]} 47. Rb8
{[%clk 00:15:26]} {[%emt 00:01:01]} Kf6 {[%clk 00:40:20]} {[%emt 00:01:48]} 48.
Rf8+ {[%clk 00:15:07]} {[%emt 00:00:49]} Ke5 {[%clk 00:39:27]} {[%emt
00:01:23]} 49. Rf3 {[%clk 00:14:09]} {[%emt 00:01:28]} Rg4 {[%clk 00:35:14]}
{[%emt 00:04:43]} 50. Rf8 {[%clk 00:11:10]} {[%emt 00:03:29]} Re4+ {[%clk
00:34:28]} {[%emt 00:01:15]} 51. Kf3 {[%clk 00:10:29]} {[%emt 00:01:12]} Re1
{[%clk 00:34:11]} {[%emt 00:00:45]} 52. Kg2 {[%clk 00:10:37]} {[%emt 00:00:24]}
Rc1 {[%clk 00:34:01]} {[%emt 00:00:39]} 53. Re8+ {[%clk 00:05:36]} {[%emt
00:05:31]} Kf6 {[%clk 00:32:45]} {[%emt 00:01:46]} 54. Re2 {[%clk 00:05:34]}
{[%emt 00:00:32]} g5 {[%clk 00:32:00]} {[%emt 00:01:15]} 55. Rd2 {[%clk
00:05:16]} {[%emt 00:00:49]} g4 {[%clk 00:31:56]} {[%emt 00:00:33]} 56. Rd5
{[%clk 00:04:36]} {[%emt 00:01:11]} Kg6 {[%clk 00:31:01]} {[%emt 00:01:25]} 57.
Rd3 {[%clk 00:03:16]} {[%emt 00:01:51]} h5 {[%clk 00:29:31]} {[%emt 00:01:59]}
58. h3 {[%clk 00:02:54]} {[%emt 00:00:51]} Kg5 {[%clk 00:29:30]} {[%emt
00:00:32]} 59. hxg4 {[%clk 00:02:49]} {[%emt 00:00:36]} hxg4 {[%clk 00:28:58]}
{[%emt 00:01:01]} 60. Rd5+ {[%clk 00:00:42]} {[%emt 00:02:37]} Kf4 {[%clk
00:28:32]} {[%emt 00:00:54]} 61. Rh5 {[%clk 00:01:01]} {[%emt 00:00:13]} Rxc2
{[%clk 00:28:12]} {[%emt 00:00:50]} 62. Rf5+ {[%clk 00:01:24]} {[%emt
00:00:06]} Kxf5 {[%clk 00:28:07]} {[%emt 00:00:35]} 63. Bd3+ {[%clk 00:01:48]}
{[%emt 00:00:07]} Kf4 {[%clk 00:28:31]} {[%emt 00:00:06]} 64. Bxc2 {[%clk
00:02:07]} {[%emt 00:00:11]} Ke3 {[%clk 00:28:51]} {[%emt 00:00:10]} 65. Bf5
{[%clk 00:02:15]} {[%emt 00:00:22]} Ke2 {[%clk 00:28:53]} {[%emt 00:00:28]} 66.
Kh2 {[%clk 00:02:21]} {[%emt 00:00:25]} f1=N {[%clk 00:28:58]} {[%emt
00:00:24]} 0-1

[Event "NJSK 2026 Jeugd B"]
[Site "Helmond, Netherlands"]
[Date "2026.04.30"]
[Round "6.3"]
[White "De Jong, Lode"]
[Black "Grooten, Tommy"]
[Result "1-0"]
[TimeControl "90min/40moves + 30min + 30sec/move"]
[WhiteTitle "-"]
[BlackTitle "-"]
[WhiteFideId "40101860"]
[BlackFideId "1068806"]
[WhiteElo "1902"]
[BlackElo "2347"]

1. d4 {[%clk 01:30:58]} {[%emt 00:00:02]} d5 {[%clk 01:30:35]} {[%emt
00:00:27]} 2. c4 {[%clk 01:31:22]} {[%emt 00:00:07]} e6 {[%clk 01:31:00]}
{[%emt 00:00:04]} 3. Nf3 {[%clk 01:31:48]} {[%emt 00:00:01]} Nf6 {[%clk
01:31:26]} {[%emt 00:00:04]} 4. g3 {[%clk 01:32:14]} {[%emt 00:00:04]} Be7
{[%clk 01:31:51]} {[%emt 00:00:06]} 5. Bg2 {[%clk 01:32:40]} {[%emt 00:00:04]}
Ne4 {[%clk 01:32:17]} {[%emt 00:00:04]} 6. O-O {[%clk 01:32:36]} {[%emt
00:00:34]} f5 {[%clk 01:32:33]} {[%emt 00:00:14]} 7. b3 {[%clk 01:32:53]}
{[%emt 00:00:13]} Nc6 {[%clk 01:32:49]} {[%emt 00:00:14]} 8. Bb2 {[%clk
01:27:32]} {[%emt 00:05:51]} h5 {[%clk 01:30:04]} {[%emt 00:03:15]} 9. Nc3
{[%clk 01:06:54]} {[%emt 00:21:05]} h4 {[%clk 01:28:59]} {[%emt 00:01:37]} 10.
Ne5 {[%clk 01:06:49]} {[%emt 00:00:34]} hxg3 {[%clk 01:26:02]} {[%emt
00:03:26]} 11. hxg3 {[%clk 01:07:00]} {[%emt 00:00:20]} Nxe5 {[%clk 01:21:22]}
{[%emt 00:05:10]} 12. dxe5 {[%clk 01:07:23]} {[%emt 00:00:07]} Nxg3 {[%clk
00:39:43]} {[%emt 00:42:10]} 13. fxg3 {[%clk 01:07:25]} {[%emt 00:00:28]} Bc5+
{[%clk 00:40:07]} {[%emt 00:00:06]} 14. Rf2 {[%clk 01:07:51]} {[%emt 00:00:04]}
f4 {[%clk 00:40:05]} {[%emt 00:00:31]} 15. gxf4 {[%clk 00:50:25]} {[%emt
00:17:56]} Bxf2+ {[%clk 00:39:48]} {[%emt 00:00:47]} 16. Kxf2 {[%clk 00:50:49]}
{[%emt 00:00:07]} d4 {[%clk 00:40:12]} {[%emt 00:00:05]} 17. Ne4 {[%clk
00:39:14]} {[%emt 00:12:03]} Qh4+ {[%clk 00:40:11]} {[%emt 00:00:33]} 18. Kf3
{[%clk 00:37:23]} {[%emt 00:02:21]} O-O {[%clk 00:37:09]} {[%emt 00:03:32]} 19.
Qd2 {[%clk 00:36:10]} {[%emt 00:01:43]} g5 {[%clk 00:36:10]} {[%emt 00:01:30]}
20. Nf6+ {[%clk 00:36:26]} {[%emt 00:00:14]} Rxf6 {[%clk 00:36:13]} {[%emt
00:00:27]} 21. exf6 {[%clk 00:36:40]} {[%emt 00:00:16]} e5 {[%clk 00:36:13]}
{[%emt 00:00:28]} 22. fxe5 {[%clk 00:22:49]} {[%emt 00:14:23]} Bg4+ {[%clk
00:30:49]} {[%emt 00:05:53]} 23. Ke4 {[%clk 00:23:13]} {[%emt 00:00:06]} Bxe2+
{[%clk 00:29:20]} {[%emt 00:02:00]} 24. Kd5 {[%clk 00:23:27]} {[%emt 00:00:16]}
Qg4 {[%clk 00:20:04]} {[%emt 00:09:46]} 25. Kc5 {[%clk 00:13:55]} {[%emt
00:10:01]} b6+ {[%clk 00:12:44]} {[%emt 00:07:50]} 26. Kb4 {[%clk 00:06:51]}
{[%emt 00:07:34]} Qxg2 {[%clk 00:12:19]} {[%emt 00:00:55]} 27. Re1 {[%clk
00:06:36]} {[%emt 00:00:45]} d3 {[%clk 00:04:24]} {[%emt 00:08:26]} 28. e6
{[%clk 00:06:54]} {[%emt 00:00:12]} Qg3 {[%clk 00:03:44]} {[%emt 00:01:09]} 29.
Rxe2 {[%clk 00:02:33]} {[%emt 00:04:52]} dxe2 {[%clk 00:03:45]} {[%emt
00:00:29]} 30. Qxe2 {[%clk 00:03:01]} {[%emt 00:00:02]} a5+ {[%clk 00:03:25]}
{[%emt 00:00:50]} 31. Ka4 {[%clk 00:02:41]} {[%emt 00:00:49]} b5+ {[%clk
00:03:49]} {[%emt 00:00:06]} 32. cxb5 {[%clk 00:02:25]} {[%emt 00:00:47]} Qf4+
{[%clk 00:01:47]} {[%emt 00:02:31]} 33. Qc4 {[%clk 00:02:54]} Qxc4+ {[%clk
00:02:03]} {[%emt 00:00:14]} 34. bxc4 {[%clk 00:03:23]} g4 {[%clk 00:02:32]} 35.
Be5 {[%clk 00:02:30]} {[%emt 00:01:23]} Kh7 {[%clk 00:01:59]} {[%emt 00:01:04]}
36. c5 {[%clk 00:01:32]} {[%emt 00:01:29]} g3 {[%clk 00:01:00]} {[%emt
00:01:29]} 37. Bxg3 {[%clk 00:01:55]} {[%emt 00:00:07]} Kg6 {[%clk 00:01:24]}
{[%emt 00:00:05]} 38. Bxc7 {[%clk 00:01:41]} {[%emt 00:00:44]} 1-0

[Event "NJSK 2026 Jeugd B"]
[Site "Helmond, Netherlands"]
[Date "2026.04.30"]
[Round "6.4"]
[White "Teianu, Maxim"]
[Black "Baarspul, Bram"]
[Result "1/2-1/2"]
[TimeControl "90min/40moves + 30min + 30sec/move"]
[WhiteTitle "-"]
[BlackTitle "-"]
[WhiteFideId "40101967"]
[BlackFideId "40106187"]
[WhiteElo "2024"]
[BlackElo "2177"]

1. d4 {[%clk 01:30:58]} {[%emt 00:00:01]} Nf6 {[%clk 01:30:53]} {[%emt
00:00:06]} 2. c4 {[%clk 01:31:21]} {[%emt 00:00:07]} e6 {[%clk 01:31:12]}
{[%emt 00:00:13]} 3. Nf3 {[%clk 01:31:46]} {[%emt 00:00:06]} d5 {[%clk
01:31:36]} {[%emt 00:00:06]} 4. Nc3 {[%clk 01:32:12]} {[%emt 00:00:03]} c5
{[%clk 01:31:47]} {[%emt 00:00:17]} 5. cxd5 {[%clk 01:32:33]} {[%emt 00:00:10]}
Nxd5 {[%clk 01:32:13]} {[%emt 00:00:04]} 6. e4 {[%clk 01:32:57]} {[%emt
00:00:06]} Nxc3 {[%clk 01:32:39]} {[%emt 00:00:03]} 7. bxc3 {[%clk 01:33:23]}
{[%emt 00:00:04]} cxd4 {[%clk 01:33:03]} {[%emt 00:00:06]} 8. cxd4 {[%clk
01:33:50]} {[%emt 00:00:03]} Bb4+ {[%clk 01:33:27]} {[%emt 00:00:06]} 9. Bd2
{[%clk 01:34:17]} {[%emt 00:00:04]} Bxd2+ {[%clk 01:33:53]} {[%emt 00:00:03]}
10. Qxd2 {[%clk 01:34:42]} {[%emt 00:00:05]} O-O {[%clk 01:34:17]} {[%emt
00:00:05]} 11. Bc4 {[%clk 01:34:48]} {[%emt 00:00:25]} Nd7 {[%clk 01:34:43]}
{[%emt 00:00:05]} 12. O-O {[%clk 01:34:55]} {[%emt 00:00:22]} b6 {[%clk
01:35:08]} {[%emt 00:00:05]} 13. Rad1 {[%clk 01:32:38]} {[%emt 00:02:47]} Bb7
{[%clk 01:35:32]} {[%emt 00:00:06]} 14. Rfe1 {[%clk 01:33:03]} {[%emt
00:00:05]} h6 {[%clk 01:35:58]} {[%emt 00:00:04]} 15. h3 {[%clk 01:22:07]}
{[%emt 00:11:26]} Rc8 {[%clk 01:36:19]} {[%emt 00:00:09]} 16. Bb3 {[%clk
01:22:22]} {[%emt 00:00:15]} Nf6 {[%clk 01:36:39]} {[%emt 00:00:10]} 17. Qf4
{[%clk 01:22:28]} {[%emt 00:00:23]} Qc7 {[%clk 01:34:34]} {[%emt 00:02:36]} 18.
Ne5 {[%clk 01:21:27]} {[%emt 00:01:32]} Nd7 {[%clk 01:27:13]} {[%emt 00:07:48]}
19. Qg3 {[%clk 01:11:58]} {[%emt 00:09:57]} Nxe5 {[%clk 01:24:40]} {[%emt
00:03:05]} 20. dxe5 {[%clk 01:12:24]} {[%emt 00:00:05]} b5 {[%clk 01:17:31]}
{[%emt 00:07:39]} 21. Qf4 {[%clk 01:01:52]} {[%emt 00:11:01]} a5 {[%clk
01:12:38]} {[%emt 00:05:23]} 22. Rd3 {[%clk 00:54:45]} {[%emt 00:07:36]} a4
{[%clk 00:59:31]} {[%emt 00:13:38]} 23. Bd1 {[%clk 00:55:10]} {[%emt 00:00:05]}
Qc1 {[%clk 00:51:18]} {[%emt 00:08:43]} 24. Rde3 {[%clk 00:55:18]} {[%emt
00:00:22]} Qd2 {[%clk 00:49:07]} {[%emt 00:02:41]} 25. Bh5 {[%clk 00:47:30]}
{[%emt 00:08:18]} b4 {[%clk 00:35:12]} {[%emt 00:14:25]} 26. Kh2 {[%clk
00:38:54]} {[%emt 00:09:07]} b3 {[%clk 00:24:02]} {[%emt 00:11:41]} 27. axb3
{[%clk 00:33:46]} {[%emt 00:05:38]} axb3 {[%clk 00:24:20]} {[%emt 00:00:11]} 28.
Rd1 {[%clk 00:27:57]} {[%emt 00:06:19]} Qc2 {[%clk 00:22:10]} {[%emt 00:02:41]}
29. Rd7 {[%clk 00:11:24]} {[%emt 00:17:02]} b2 {[%clk 00:10:22]} {[%emt
00:12:19]} 30. Rg3 {[%clk 00:10:03]} {[%emt 00:01:50]} Bxe4 {[%clk 00:01:54]}
{[%emt 00:08:59]} 31. Rxf7 {[%clk 00:08:44]} {[%emt 00:01:48]} g6 {[%clk
00:01:39]} {[%emt 00:00:45]} 32. Qxh6 {[%clk 00:01:04]} {[%emt 00:08:10]} Rxf7
{[%clk 00:01:55]} {[%emt 00:00:15]} 33. Bxg6 {[%clk 00:01:20]} {[%emt
00:00:13]} Bxg6 {[%clk 00:01:45]} {[%emt 00:00:40]} 34. Rxg6+ {[%clk 00:01:46]}
{[%emt 00:00:04]} Qxg6 {[%clk 00:02:06]} {[%emt 00:00:10]} 35. Qxg6+ {[%clk
00:02:14]} {[%emt 00:00:02]} Kf8 {[%clk 00:01:43]} {[%emt 00:00:52]} 36. Qh6+
{[%clk 00:02:39]} {[%emt 00:00:05]} Ke7 {[%clk 00:01:07]} {[%emt 00:01:06]} 37.
Qg5+ {[%clk 00:02:35]} {[%emt 00:00:33]} Kf8 {[%clk 00:01:26]} {[%emt
00:00:12]} 38. Qh6+ {[%clk 00:03:02]} {[%emt 00:00:04]} Ke7 {[%clk 00:00:36]}
{[%emt 00:01:20]} 39. Qg5+ {[%clk 00:03:27]} {[%emt 00:00:04]} 1/2-1/2

[Event "NJSK 2026 Jeugd B"]
[Site "Helmond, Netherlands"]
[Date "2026.04.30"]
[Round "6.5"]
[White "Zecha, Oscar"]
[Black "Frederiks, Jesse"]
[Result "1/2-1/2"]
[TimeControl "90min/40moves + 30min + 30sec/move"]
[WhiteTitle "-"]
[BlackTitle "-"]
[WhiteFideId "1073826"]
[BlackFideId "1095790"]
[WhiteElo "2120"]
[BlackElo "2018"]

1. e4 {[%clk 01:30:56]} {[%emt 00:00:03]} e5 {[%clk 01:30:42]} {[%emt
00:00:20]} 2. Nf3 {[%clk 01:31:19]} {[%emt 00:00:09]} Nc6 {[%clk 01:31:05]}
{[%emt 00:00:02]} 3. Bb5 {[%clk 01:31:40]} {[%emt 00:00:10]} a6 {[%clk
01:31:28]} {[%emt 00:00:06]} 4. Ba4 {[%clk 01:32:05]} {[%emt 00:00:05]} Nf6
{[%clk 01:31:35]} {[%emt 00:00:23]} 5. O-O {[%clk 01:32:17]} {[%emt 00:00:18]}
Be7 {[%clk 01:31:53]} {[%emt 00:00:11]} 6. Re1 {[%clk 01:32:42]} {[%emt
00:00:06]} b5 {[%clk 01:32:17]} {[%emt 00:00:06]} 7. Bb3 {[%clk 01:33:08]}
{[%emt 00:00:05]} O-O {[%clk 01:32:42]} {[%emt 00:00:04]} 8. a4 {[%clk
01:33:34]} {[%emt 00:00:04]} Bb7 {[%clk 01:32:23]} {[%emt 00:00:49]} 9. d3
{[%clk 01:33:48]} {[%emt 00:00:16]} d6 {[%clk 01:32:26]} {[%emt 00:00:25]} 10.
Nbd2 {[%clk 01:30:35]} {[%emt 00:03:46]} Nd7 {[%clk 01:32:46]} {[%emt
00:00:09]} 11. c3 {[%clk 01:31:00]} {[%emt 00:00:06]} Nc5 {[%clk 01:32:30]}
{[%emt 00:00:44]} 12. Bc2 {[%clk 01:31:15]} {[%emt 00:00:16]} Nxa4 {[%clk
01:32:29]} {[%emt 00:00:31]} 13. Bxa4 {[%clk 01:25:04]} {[%emt 00:06:42]} bxa4
{[%clk 01:32:48]} {[%emt 00:00:09]} 14. Qxa4 {[%clk 01:24:53]} {[%emt
00:00:41]} Kh8 {[%clk 01:33:06]} {[%emt 00:00:13]} 15. Nf1 {[%clk 01:09:41]}
{[%emt 00:15:42]} f5 {[%clk 01:24:54]} {[%emt 00:08:41]} 16. exf5 {[%clk
01:09:47]} {[%emt 00:00:25]} Rxf5 {[%clk 01:23:10]} {[%emt 00:02:12]} 17. Qg4
{[%clk 01:08:59]} {[%emt 00:01:18]} Bc8 {[%clk 01:04:09]} {[%emt 00:19:31]} 18.
Qc4 {[%clk 01:07:01]} {[%emt 00:02:28]} Bb7 {[%clk 00:59:07]} {[%emt 00:05:32]}
19. Qg4 {[%clk 01:01:10]} {[%emt 00:06:21]} Bc8 {[%clk 00:51:30]} {[%emt
00:08:07]} 20. Qc4 {[%clk 01:01:24]} {[%emt 00:00:16]} Bb7 {[%clk 00:51:53]}
{[%emt 00:00:07]} 21. Ne3 {[%clk 01:00:00]} {[%emt 00:01:55]} Rf4 {[%clk
00:47:01]} {[%emt 00:05:21]} 22. Qe6 {[%clk 00:48:29]} {[%emt 00:12:02]} Rf6
{[%clk 00:42:57]} {[%emt 00:04:33]} 23. Qg4 {[%clk 00:47:56]} {[%emt 00:01:03]}
Rg6 {[%clk 00:41:05]} {[%emt 00:02:22]} 24. Qh5 {[%clk 00:44:28]} {[%emt
00:03:59]} Bc8 {[%clk 00:19:01]} {[%emt 00:22:35]} 25. Nf5 {[%clk 00:37:49]}
{[%emt 00:07:09]} Qf8 {[%clk 00:13:30]} {[%emt 00:06:01]} 26. N5h4 {[%clk
00:31:21]} {[%emt 00:06:57]} Re6 {[%clk 00:07:43]} {[%emt 00:06:18]} 27. Ng5
{[%clk 00:30:12]} {[%emt 00:01:39]} Bxg5 {[%clk 00:07:59]} {[%emt 00:00:13]} 28.
Bxg5 {[%clk 00:30:24]} {[%emt 00:00:18]} Rb8 {[%clk 00:07:06]} {[%emt
00:01:24]} 29. b4 {[%clk 00:21:22]} {[%emt 00:09:32]} Qe8 {[%clk 00:07:08]}
{[%emt 00:00:27]} 30. Qxe8+ {[%clk 00:15:32]} {[%emt 00:06:21]} Rxe8 {[%clk
00:07:37]} {[%emt 00:00:01]} 31. Nf3 {[%clk 00:15:14]} {[%emt 00:00:47]} Bb7
{[%clk 00:07:20]} {[%emt 00:00:47]} 32. Nd2 {[%clk 00:14:54]} {[%emt 00:00:50]}
h6 {[%clk 00:07:24]} {[%emt 00:00:27]} 33. Be3 {[%clk 00:15:03]} {[%emt
00:00:21]} Ne7 {[%clk 00:07:32]} {[%emt 00:00:21]} 34. Ne4 {[%clk 00:11:54]}
{[%emt 00:03:38]} Nd5 {[%clk 00:07:25]} {[%emt 00:00:38]} 35. Bd2 {[%clk
00:10:37]} {[%emt 00:01:48]} Kh7 {[%clk 00:06:33]} {[%emt 00:01:21]} 36. f3
{[%clk 00:04:50]} {[%emt 00:06:17]} Kg6 {[%clk 00:06:17]} {[%emt 00:00:47]} 37.
Ra5 {[%clk 00:04:00]} {[%emt 00:01:20]} Nf6 {[%clk 00:04:55]} {[%emt 00:01:52]}
38. Rb1 {[%clk 00:03:04]} {[%emt 00:01:26]} Bc6 {[%clk 00:04:07]} {[%emt
00:01:18]} 39. c4 {[%clk 00:00:54]} {[%emt 00:02:40]} Nxe4 {[%clk 00:02:42]}
{[%emt 00:01:54]} 40. dxe4 {[%clk 00:00:47]} {[%emt 00:00:37]} Ra8 {[%clk
00:01:15]} {[%emt 00:01:57]} 41. Bc3 {[%clk 00:13:26]} {[%emt 00:17:51]} Kf7
{[%clk 00:27:32]} {[%emt 00:04:13]} 42. Kf2 {[%clk 00:12:47]} {[%emt 00:01:09]}
Ke6 {[%clk 00:25:38]} {[%emt 00:02:23]} 43. Ke3 {[%clk 00:12:42]} {[%emt
00:00:36]} g6 {[%clk 00:20:58]} {[%emt 00:05:11]} 44. h4 {[%clk 00:11:53]}
{[%emt 00:01:19]} Rf8 {[%clk 00:19:46]} {[%emt 00:01:41]} 45. Rg1 {[%clk
00:11:42]} {[%emt 00:00:42]} Bb7 {[%clk 00:14:12]} {[%emt 00:06:03]} 46. g3
{[%clk 00:08:34]} {[%emt 00:03:39]} Rf7 {[%clk 00:12:50]} {[%emt 00:01:52]} 47.
f4 {[%clk 00:05:50]} {[%emt 00:03:15]} Raf8 {[%clk 00:11:41]} {[%emt 00:01:38]}
48. Rf1 {[%clk 00:04:50]} {[%emt 00:01:31]} Kd7 {[%clk 00:10:26]} {[%emt
00:01:45]} 49. Rf2 {[%clk 00:04:27]} {[%emt 00:00:52]} h5 {[%clk 00:10:15]}
{[%emt 00:00:41]} 50. Raa2 {[%clk 00:03:13]} {[%emt 00:01:44]} Ke6 {[%clk
00:10:36]} {[%emt 00:00:09]} 51. Ra5 {[%clk 00:02:22]} {[%emt 00:01:22]} Kd7
{[%clk 00:10:32]} {[%emt 00:00:32]} 52. Be1 {[%clk 00:02:08]} {[%emt 00:00:44]}
Re8 {[%clk 00:09:48]} {[%emt 00:01:16]} 53. fxe5 {[%clk 00:00:44]} {[%emt
00:01:54]} Rxf2 {[%clk 00:10:11]} {[%emt 00:00:07]} 54. Bxf2 {[%clk 00:00:36]}
{[%emt 00:00:37]} Rxe5 {[%clk 00:10:30]} {[%emt 00:00:11]} 1/2-1/2